bitfinex/quotes_SOLUSD_20241103
["timestamp","ask_amount","ask_price","bid_price","bid_amount"]
[1730602727890,13.31250489,162.26,162.21,23.776884]
[1730602728478,19.47550489,162.26,162.21,23.776884]
[1730602728815,13.31250489,162.25,162.21,23.776884]
[1730602729311,19.47550489,162.26,162.21,23.776884]
[1730602730015,19.47550489,162.26,162.21,37.08938889]
[1730602730710,19.47550489,162.26,162.21,23.776884]
[1730602731007,13.31250489,162.27,162.21,43.25418889]
[1730602731193,19.47500489,162.28,162.22,13.31250489]
[1730602731395,19.47500489,162.28,162.23,13.31250489]
[1730602731797,19.47500489,162.28,162.22,13.31250489]
[1730602732200,19.47500489,162.28,162.22,19.47690489]
[1730602732508,13.31250489,162.27,162.22,19.47690489]
[1730602732894,19.47500489,162.28,162.22,34.88800489]
[1730602733288,13.31250489,162.27,162.22,34.88800489]
[1730602733999,19.47500489,162.28,162.22,34.88800489]
[1730602735514,13.31250489,162.27,162.22,34.88800489]
[1730602735690,19.47510489,162.27,162.22,34.88800489]
[1730602736490,0.1787012,162.29,162.24,13.31250489]
[1730602736491,19.65300609,162.29,162.24,13.31250489]
[1730602736715,6.3405012,162.29,162.25,13.31250489]
[1730602737206,19.65300609,162.29,162.24,13.31250489]
[1730602737407,0.1787012,162.29,162.24,13.31250489]
[1730602737713,13.49120609,162.29,162.24,19.47580489]
[1730602737887,19.65300609,162.29,162.24,19.47580489]
[1730602738623,13.31250489,162.27,162.23,23.776884]
[1730602738827,13.31250489,162.28,162.23,29.940784]
[1730602738997,19.65300609,162.29,162.23,43.25328889]
[1730602739511,6.3405012,162.29,162.24,13.31250489]
[1730602739719,13.31250489,162.28,162.24,6.1635]
[1730602740802,13.31250489,162.27,162.23,23.776884]
[1730602740998,13.31250489,162.27,162.2,15.4126]
[1730602740999,13.31250489,162.24,162.2,21.5777]
[1730602741199,13.31250489,162.25,162.2,21.5777]
[1730602741699,13.31250489,162.26,162.2,34.89020489]
[1730602741895,6.3405012,162.29,162.24,13.31250489]
[1730602742321,0.1787012,162.29,162.25,37.08938889]
[1730602742815,0.1787012,162.29,162.26,6.1629]
[1730602743016,0.1787012,162.29,162.26,19.47540489]
[1730602744225,0.1787012,162.29,162.26,21.5702]
[1730602744719,13.31250489,162.28,162.24,23.776884]
[1730602745421,13.31250489,162.28,162.23,23.776884]
[1730602745613,13.31250489,162.28,162.23,37.08938889]
[1730602746119,19.65300609,162.29,162.23,37.08938889]
[1730602746415,6.3405012,162.29,162.24,13.31250489]
[1730602746600,6.3405012,162.29,162.23,45.350784]
[1730602746601,0.1787012,162.29,162.25,37.08938889]
[1730602746807,0.1787012,162.29,162.26,13.31250489]
[1730602747609,0.1787012,162.29,162.26,23.776884]
[1730602747923,0.1787012,162.29,162.26,37.08938889]
[1730602748422,0.1787012,162.29,162.27,13.31250489]
[1730602748602,0.1787012,162.29,162.28,37.08938889]
[1730602748809,0.1787012,162.29,162.28,23.776884]
[1730602749322,0.1787012,162.29,162.28,57.08938889]
[1730602749827,0.1787012,162.29,162.28,69.76748889]
[1730602751737,0.1787012,162.29,162.28,43.60538889]
[1730602752038,0.1787012,162.29,162.28,29.938984]
[1730602752403,0.1787012,162.29,162.28,6.1621]
[1730602753531,0.1787012,162.29,162.28,19.47460489]
[1730602753730,0.1787012,162.29,162.28,43.25148889]
[1730602754517,0.4142694,162.38,162.28,23.776884]
[1730602754518,6.1606,162.32,162.28,23.776884]
[1730602754827,0.0859597,162.29,162.28,23.776884]
[1730602755219,0.0859597,162.29,162.27,19.47490489]
[1730602755413,0.0859597,162.29,162.25,28.72080489]
[1730602755636,13.39846459,162.29,162.25,15.4083]
[1730602755821,0.0859597,162.29,162.25,34.88410489]
[1730602756211,0.0859597,162.29,162.25,28.72080489]
[1730602756533,0.0859597,162.29,162.25,13.31250489]
[1730602757204,0.0859597,162.29,162.25,23.776884]
[1730602757416,0.0859597,162.29,162.25,43.25248889]
[1730602757828,0.0859597,162.29,162.25,23.776884]
[1730602758033,13.31250489,162.28,162.24,15.4092]
[1730602758411,13.31250489,162.28,162.2,22.7654]
[1730602758412,13.31250489,162.25,162.22,6.1643]
[1730602758724,13.31250489,162.26,162.22,6.1643]
[1730602759236,13.31250489,162.27,162.22,13.31250489]
[1730602759609,19.47540489,162.27,162.21,19.47710489]
[1730602759823,13.31250489,162.26,162.21,19.47710489]
[1730602760023,13.31250489,162.25,162.2,28.72500489]
[1730602760430,13.31250489,162.23,162.18,13.31250489]
[1730602760639,13.31250489,162.24,162.18,34.89330489]
[1730602760838,13.31250489,162.25,162.19,13.31250489]
[1730602761418,6.1629,162.27,162.18,21.5808]
[1730602761419,6.1629,162.27,162.22,13.31250489]
[1730602761737,13.31250489,162.28,162.23,13.31250489]
[1730602762034,6.2480597,162.29,162.23,13.31250489]
[1730602762035,19.56056459,162.29,162.23,13.31250489]
[1730602762416,6.2480597,162.29,162.24,13.31250489]
[1730602762615,0.0859597,162.29,162.24,13.31250489]
[1730602762940,0.0859597,162.29,162.25,37.08938889]
[1730602763148,0.0859597,162.29,162.23,23.776884]
[1730602763149,6.2478597,162.29,162.23,23.776884]
[1730602763319,13.31250489,162.28,162.23,23.776884]
[1730602763652,13.31250489,162.26,162.22,15.4111]
[1730602763822,13.31250489,162.25,162.2,13.31250489]
[1730602764024,13.31250489,162.23,162.19,15.4139]
[1730602764243,13.31250489,162.23,162.17,13.31250489]
[1730602764446,13.31250489,162.23,162.18,13.31250489]
[1730602764817,13.31250489,162.23,162.17,34.89470489]
[1730602765034,13.31250489,162.22,162.17,34.89470489]
[1730602765422,13.31250489,162.21,162.17,15.4159]
[1730602766225,13.31250489,162.23,162.17,28.72840489]
[1730602766446,15.4908597,162.29,162.21,13.31250489]
[1730602766447,0.0859597,162.29,162.21,13.31250489]
[1730602766646,0.0859597,162.29,162.28,57.08938889]
[1730602767339,0.0859597,162.29,162.28,37.08938889]
[1730602767546,0.0859597,162.29,162.28,29.938984]
[1730602770041,0.0859597,162.29,162.28,51.22001782]
[1730602773344,0.0859597,162.29,162.28,29.938984]
[1730602773543,0.0859597,162.29,162.28,23.776884]
[1730602773730,0.0859597,162.29,162.27,15.4061]
[1730602774726,0.0859597,162.29,162.28,21.28103382]
[1730602775055,0.0859597,162.29,162.27,21.5686]
[1730602776752,0.0859597,162.29,162.27,36.68713382]
[1730602776950,0.0859597,162.29,162.28,23.776884]
[1730602777327,0.0859597,162.29,162.28,65.05791782]
[1730602778535,0.0859597,162.29,162.28,71.22001782]
[1730602781846,0.0859597,162.29,162.28,71.32001782]
[1730602782046,0.2983171,162.34,162.28,71.32001782]
[1730602782047,0.2983171,162.34,162.29,23.976884]
[1730602782253,0.2983171,162.34,162.29,43.976884]
[1730602782437,0.2983171,162.34,162.33,65.05791782]
[1730602782957,0.2983171,162.34,162.33,71.21811782]
[1730602783467,0.2983171,162.34,162.33,29.937084]
[1730602783763,0.2983171,162.34,162.33,51.21811782]
[1730602784657,0.2983171,162.34,162.32,21.5618]
[1730602786432,21.57935092,162.34,162.3,6.161]
[1730602787143,21.28103382,162.32,162.29,15.4044]
[1730602787450,21.28103382,162.32,162.28,6.1618]
[1730602787655,13.30278092,162.32,162.28,6.1618]
[1730602787958,13.30278092,162.32,162.27,6.1625]
[1730602788260,13.30278092,162.31,162.26,15.4072]
[1730602788434,13.30278092,162.3,162.26,15.4072]
[1730602788631,13.30278092,162.29,162.26,15.4072]
[1730602788862,13.30278092,162.28,162.24,6.1637]
[1730602789358,13.30278092,162.27,162.23,21.574]
[1730602789564,6.1606,162.32,162.23,21.574]
[1730602789565,13.30278092,162.3,162.25,13.30278092]
[1730602789745,13.30278092,162.3,162.24,13.30278092]
[1730602790054,13.30278092,162.29,162.24,13.30278092]
[1730602790447,13.30278092,162.29,162.24,19.46618092]
[1730602790636,13.30278092,162.29,162.24,34.87538092]
[1730602790955,13.30278092,162.32,162.26,13.30278092]
[1730602791161,13.30278092,162.31,162.26,13.30278092]
[1730602791348,13.30278092,162.31,162.25,13.30278092]
[1730602791963,13.30278092,162.29,162.24,34.87538092]
[1730602792157,13.30278092,162.3,162.25,37.07966492]
[1730602792352,13.30278092,162.31,162.25,43.24276492]
[1730602792557,13.30278092,162.31,162.25,58.65106492]
[1730602793167,29.28508092,162.33,162.27,13.30278092]
[1730602793464,13.30278092,162.33,162.27,13.30278092]
[1730602793765,0.2983171,162.34,162.3,13.30278092]
[1730602794168,0.2983171,162.34,162.3,23.776884]
[1730602794343,13.60109802,162.34,162.3,23.776884]
[1730602794539,0.2983171,162.34,162.31,6.161]
[1730602794757,0.2983171,162.34,162.31,21.5636]
[1730602795068,13.60109802,162.34,162.31,15.4026]
[1730602796156,13.30278092,162.33,162.28,23.776884]
[1730602796462,13.30278092,162.31,162.27,15.4055]
[1730602796765,13.30278092,162.3,162.25,19.46608092]
[1730602797151,13.30278092,162.3,162.25,6.1633]
[1730602797339,13.30278092,162.29,162.24,19.46638092]
[1730602797541,13.30278092,162.3,162.24,34.87558092]
[1730602798166,13.30278092,162.31,162.25,13.30278092]
[1730602798349,13.30278092,162.31,162.26,13.30278092]
[1730602798544,19.46398092,162.31,162.26,13.30278092]
[1730602798770,19.46398092,162.31,162.26,19.46568092]
[1730602799063,19.46398092,162.31,162.26,6.1629]
[1730602799270,19.46398092,162.31,162.25,13.30278092]
[1730602799455,19.46398092,162.31,162.25,19.46598092]
[1730602799951,19.46398092,162.31,162.26,13.30278092]
[1730602800352,19.46398092,162.31,162.25,19.46598092]
[1730602800562,19.46398092,162.31,162.25,6.1632]
[1730602800747,20.0,162.3,162.24,13.30278092]
[1730602800949,13.30278092,162.26,162.21,28.71468092]
[1730602801169,13.30278092,162.26,162.21,15.4119]
[1730602801473,20.1,162.3,162.24,13.30278092]
[1730602801474,13.30278092,162.29,162.24,13.30278092]
[1730602801652,13.30278092,162.28,162.22,13.30278092]
[1730602801856,20.0,162.3,162.21,34.87938092]
[1730602801857,13.30278092,162.27,162.21,34.87938092]
[1730602802352,20.0,162.3,162.2,13.30278092]
[1730602802353,6.1637,162.24,162.2,13.30278092]
[1730602802667,6.1637,162.24,162.18,37.8538]
[1730602802668,19.46648092,162.24,162.19,13.30278092]
[1730602803065,6.1637,162.24,162.2,13.30278092]
[1730602803269,19.46648092,162.24,162.18,34.88308092]
[1730602803572,13.30278092,162.23,162.18,15.4147]
[1730602803886,19.46648092,162.24,162.18,34.88338092]
[1730602804047,13.30278092,162.25,162.19,13.30278092]
[1730602804253,6.1625,162.27,162.22,13.30278092]
[1730602804669,13.30278092,162.26,162.2,13.30278092]
[1730602805053,19.46528092,162.27,162.21,13.30278092]
[1730602805561,6.1625,162.27,162.22,13.30278092]
[1730602805978,19.46528092,162.27,162.22,19.46718092]
[1730602806163,6.1625,162.27,162.22,19.46718092]
[1730602806357,13.30278092,162.25,162.19,28.71678092]
[1730602806556,13.30278092,162.24,162.19,13.30278092]
[1730602806757,13.30278092,162.28,162.22,13.30278092]
[1730602806954,13.30278092,162.29,162.23,13.30278092]
[1730602807562,13.30278092,162.26,162.21,13.30278092]
[1730602807773,6.1625,162.27,162.23,13.30278092]
[1730602807964,6.1625,162.27,162.2,13.30278092]
[1730602808174,13.30278092,162.26,162.2,13.30278092]
[1730602808476,13.30278092,162.24,162.19,13.30278092]
[1730602808682,13.30278092,162.25,162.2,13.30278092]
[1730602808884,13.30278092,162.23,162.18,13.30278092]
[1730602809857,19.46708092,162.23,162.18,13.30278092]
[1730602810057,13.30278092,162.26,162.2,13.30278092]
[1730602810282,13.30278092,162.25,162.19,13.30278092]
[1730602810464,13.30278092,162.24,162.19,13.30278092]
[1730602810781,13.30278092,162.24,162.18,13.30278092]
[1730602811277,19.46668092,162.24,162.18,13.30278092]
[1730602811573,13.30278092,162.23,162.17,21.5822]
[1730602811781,13.30278092,162.23,162.17,28.71868092]
[1730602812163,13.30278092,162.23,162.18,13.30278092]
[1730602812377,13.30278092,162.23,162.17,34.88498092]
[1730602812772,19.46668092,162.24,162.18,13.30278092]
[1730602813088,19.46668092,162.24,162.19,13.30278092]
[1730602813375,19.46668092,162.24,162.18,13.30278092]
[1730602814482,19.46668092,162.24,162.19,13.30278092]
[1730602814702,13.30278092,162.26,162.21,13.30278092]
[1730602814973,6.1625,162.27,162.19,13.30278092]
[1730602814974,13.30278092,162.25,162.19,13.30278092]
[1730602815360,13.30278092,162.23,162.18,13.30278092]
[1730602815561,13.30278092,162.24,162.18,13.30278092]
[1730602815776,13.30278092,162.24,162.19,13.30278092]
[1730602816356,6.1644,162.22,162.17,28.71868092]
[1730602816587,6.1644,162.22,162.17,15.4159]
[1730602816873,6.1644,162.22,162.18,13.30278092]
[1730602817083,13.30278092,162.21,162.17,15.4159]
[1730602817584,13.30278092,162.21,162.17,21.5822]
[1730602817781,13.30278092,162.2,162.15,13.30278092]
[1730602818362,13.30278092,162.19,162.14,28.72128092]
[1730602818564,13.30278092,162.2,162.15,13.30278092]
[1730602819085,13.30278092,162.2,162.15,19.46988092]
[1730602819474,19.46798092,162.2,162.15,19.46988092]
[1730602820077,13.30278092,162.23,162.18,13.30278092]
[1730602820373,20.0,162.25,162.2,13.30278092]
[1730602820374,13.30278092,162.25,162.2,13.30278092]
[1730602821082,13.30278092,162.27,162.22,13.30278092]
[1730602821297,19.46488092,162.28,162.22,13.30278092]
[1730602821469,13.30278092,162.27,162.22,13.30278092]
[1730602822165,19.46528092,162.27,162.22,19.46708092]
[1730602822581,19.46528092,162.27,162.22,6.1643]
[1730602822783,19.46528092,162.27,162.21,28.71478092]
[1730602822784,13.30278092,162.26,162.21,15.412]
[1730602822985,13.30278092,162.25,162.2,20.0]
[1730602823164,13.30278092,162.24,162.19,19.46808092]
[1730602823365,13.30278092,162.24,162.19,21.5793]
[1730602823573,13.30278092,162.23,162.18,19.46868092]
[1730602824082,13.30278092,162.23,162.18,13.30278092]
[1730602824275,19.46698092,162.23,162.18,13.30278092]
[1730602824473,19.46698092,162.23,162.17,19.46898092]
[1730602824801,13.30278092,162.21,162.16,34.88598092]
[1730602825088,6.1642,162.23,162.16,15.4166]
[1730602825089,13.30278092,162.19,162.16,15.4166]
[1730602825291,13.30278092,162.2,162.16,15.4166]
[1730602825479,13.30278092,162.21,162.16,15.4166]
[1730602825876,13.30278092,162.2,162.16,15.4166]
[1730602826587,13.30278092,162.22,162.17,13.30278092]
[1730602826775,33.30278092,162.24,162.18,13.30278092]
[1730602827586,13.30278092,162.23,162.18,13.30278092]
[1730602827785,13.30278092,162.21,162.17,6.1662]
[1730602827971,6.1644,162.22,162.18,13.30278092]
[1730602828377,6.1644,162.22,162.17,19.46898092]
[1730602828779,19.46718092,162.22,162.17,19.46898092]
[1730602828989,13.30278092,162.21,162.16,34.88608092]
[1730602830091,13.30278092,162.21,162.16,13.30278092]
[1730602830265,13.30278092,162.2,162.15,19.46988092]
[1730602830684,13.30278092,162.17,162.14,6.1674]
[1730602830877,13.30278092,162.16,162.13,21.5872]
[1730602831267,13.30278092,162.16,162.13,15.4195]
[1730602831514,13.30278092,162.15,162.13,15.4195]
[1730602831794,13.30278092,162.15,162.11,6.1685]
[1730602832172,13.30278092,162.13,162.1,15.4224]
[1730602832380,13.30278092,162.14,162.1,15.4224]
[1730602832565,13.30278092,162.17,162.12,13.30278092]
[1730602832765,13.27195858,162.17,162.12,13.30278092]
[1730602832984,13.30278092,162.2,162.15,13.30278092]
[1730602833193,13.30278092,162.23,162.18,13.30278092]
[1730602833400,6.1618,162.29,162.15,15.0615]
[1730602833673,107.1756171,162.34,162.19,6.2085]
[1730602833902,0.2983171,162.34,162.22,15.0615]
[1730602834079,0.2983171,162.34,162.23,20.1]
[1730602834277,0.2983171,162.34,162.27,20.1]
[1730602834590,0.2983171,162.34,162.27,20.0]
[1730602834783,0.2983171,162.34,162.29,21.29021221]
[1730602834984,0.2983171,162.34,162.29,27.45191221]
[1730602835193,0.2983171,162.34,162.3,21.29021221]
[1730602835579,21.58852931,162.34,162.29,27.45191221]
[1730602836097,21.29021221,162.32,162.27,15.4055]
[1730602836398,21.29021221,162.3,162.25,6.1631]
[1730602836579,21.29021221,162.28,162.23,42.86391221]
[1730602836892,21.29021221,162.27,162.23,15.4099]
[1730602837601,21.29021221,162.27,162.22,21.29021221]
[1730602837773,6.161,162.31,162.2,6.1649]
[1730602837981,21.29021221,162.27,162.22,21.29021221]
[1730602838876,21.29021221,162.27,162.21,21.29021221]
[1730602839171,6.162,162.29,162.2,15.413]
[1730602839172,21.29021221,162.23,162.2,15.413]
[1730602839377,21.29021221,162.26,162.2,36.70321221]
[1730602839771,21.29021221,162.27,162.22,21.29021221]
[1730602840079,21.29021221,162.27,162.21,21.29021221]
[1730602840388,21.29021221,162.25,162.2,21.29021221]
[1730602840571,21.29021221,162.26,162.21,21.29021221]
[1730602840772,21.29021221,162.28,162.22,21.29021221]
[1730602840987,21.29021221,162.28,162.22,27.45441221]
[1730602841189,21.29021221,162.28,162.22,42.86551221]
[1730602841373,21.29021221,162.28,162.23,21.29021221]
[1730602841572,21.29021221,162.28,162.22,42.86551221]
[1730602841791,21.29021221,162.27,162.22,21.5753]
[1730602841984,21.29021221,162.27,162.22,42.86551221]
[1730602842401,6.162,162.29,162.24,21.29021221]
[1730602842402,27.45221221,162.29,162.24,21.29021221]
[1730602842575,21.29021221,162.3,162.25,21.29021221]
[1730602842775,21.29021221,162.31,162.25,21.29021221]
[1730602842976,21.29021221,162.27,162.24,20.0]
[1730602843197,21.29021221,162.27,162.22,36.70131221]
[1730602843495,21.29021221,162.26,162.22,15.4111]
[1730602843677,21.29021221,162.25,162.22,15.4111]
[1730602843880,21.29021221,162.25,162.2,27.45541221]
[1730602844576,6.1627,162.27,162.2,27.45541221]
[1730602844577,27.45291221,162.27,162.21,21.29021221]
[1730602844782,21.29021221,162.25,162.2,42.86841221]
[1730602845002,21.29021221,162.26,162.21,21.29021221]
[1730602845512,21.29021221,162.26,162.21,27.45471221]
[1730602845799,21.29021221,162.26,162.21,6.1645]
[1730602846106,30.7809,162.44,162.18,20.0]
[1730602846107,21.29021221,162.22,162.18,20.0]
[1730602846488,21.29021221,162.23,162.18,20.0]
[1730602846705,21.29021221,162.21,162.15,21.29021221]
[1730602846881,21.29021221,162.19,162.14,6.1675]
[1730602847082,21.29021221,162.21,162.15,21.29021221]
[1730602847682,21.29021221,162.22,162.17,21.29021221]
[1730602847901,21.29021221,162.25,162.19,21.29021221]
[1730602848095,21.29021221,162.25,162.2,21.29021221]
[1730602848299,6.1606,162.32,162.16,52.5172]
[1730602848483,21.29021221,162.29,162.23,21.29021221]
[1730602848808,21.29021221,162.28,162.22,21.29021221]
[1730602848976,21.29021221,162.29,162.24,21.29021221]
[1730602849187,21.29021221,162.31,162.25,21.29021221]
[1730602849806,21.29021221,162.3,162.26,21.5702]
[1730602850210,21.29021221,162.28,162.23,21.29021221]
[1730602850500,21.29021221,162.31,162.26,21.29021221]
[1730602850704,21.29021221,162.3,162.25,21.29021221]
[1730602850886,21.29021221,162.28,162.23,41.29021221]
[1730602851308,21.29021221,162.28,162.24,6.1637]
[1730602851885,21.29021221,162.31,162.25,21.29021221]
[1730602852085,21.29021221,162.3,162.25,21.29021221]
[1730602852313,21.29021221,162.31,162.25,21.29021221]
[1730602852490,21.29021221,162.3,162.25,21.29021221]
[1730602852697,21.29021221,162.3,162.24,42.86311221]
[1730602853188,21.29021221,162.28,162.24,21.5729]
[1730602853504,21.29021221,162.29,162.23,47.45411221]
[1730602853684,21.29021221,162.29,162.24,21.29021221]
[1730602854081,21.29021221,162.29,162.23,62.86431221]
[1730602854315,21.29021221,162.28,162.23,62.86431221]
[1730602854499,21.29021221,162.29,162.23,62.86431221]
[1730602854700,27.45151221,162.31,162.25,21.29021221]
[1730602854905,21.29021221,162.3,162.25,21.29021221]
[1730602855096,21.29021221,162.28,162.23,41.5741]
[1730602855301,21.29021221,162.3,162.24,21.29021221]
[1730602856237,21.29021221,162.33,162.27,21.29021221]
[1730602856409,0.2983171,162.34,162.3,21.29021221]
[1730602856799,0.2983171,162.34,162.31,20.0]
[1730602856988,0.2983171,162.34,162.33,41.29021221]
[1730602857211,0.2983171,162.34,162.32,43.86221221]
[1730602857589,0.2983171,162.34,162.32,22.572]
[1730602857791,0.2983171,162.34,162.32,43.86221221]
[1730602857991,0.2983171,162.34,162.33,41.29021221]
[1730602858198,0.2983171,162.34,162.33,47.45041221]
[1730602860723,0.2983171,162.34,162.33,47.55041221]
[1730602861022,21.58852931,162.43,162.36,0.1]
[1730602861023,0.2983171,162.43,162.36,0.1]
[1730602861200,0.2983171,162.43,162.41,21.29021221]
[1730602861404,0.2983171,162.43,162.4,21.29021221]
[1730602861605,0.2983171,162.43,162.41,20.0]
[1730602861793,0.2983171,162.43,162.42,41.29021221]
[1730602861999,0.2983171,162.43,162.4,21.29021221]
[1730602862213,0.2983171,162.43,162.41,21.5503]
[1730602862818,21.29021221,162.42,162.41,15.3931]
[1730602863416,21.58852931,162.43,162.41,21.5503]
[1730602863997,21.58852931,162.43,162.38,21.5542]
[1730602863998,21.29021221,162.42,162.38,21.5542]
[1730602864204,0.2983171,162.43,162.4,20.0]
[1730602864922,0.2983171,162.43,162.39,20.0]
[1730602865145,21.58852931,162.43,162.39,20.0]
[1730602865431,21.58852931,162.43,162.38,20.0]
[1730602865432,21.29021221,162.42,162.38,20.0]
[1730602865799,21.58852931,162.43,162.38,20.0]
[1730602866127,21.29021221,162.4,162.35,20.0]
[1730602866814,21.29021221,162.37,162.34,15.3997]
[1730602867127,21.29021221,162.35,162.34,15.3997]
[1730602867434,21.29021221,162.35,162.3,21.5646]
[1730602867611,21.29021221,162.32,162.3,21.5646]
[1730602867807,21.29021221,162.32,162.3,15.4032]
[1730602868027,21.29021221,162.31,162.28,6.1619]
[1730602868217,21.29021221,162.32,162.28,21.5673]
[1730602868414,6.1587,162.37,162.24,6.4476]
[1730602868415,21.29021221,162.29,162.24,21.8568]
[1730602868616,21.29021221,162.26,162.24,15.4092]
[1730602868825,21.29021221,162.25,162.24,15.4092]
[1730602869027,21.29021221,162.25,162.24,21.5729]
[1730602869229,21.29021221,162.28,162.24,21.5729]
[1730602869425,21.29021221,162.27,162.24,21.5729]
[1730602869599,21.29021221,162.25,162.22,6.1642]
[1730602869805,21.29021221,162.23,162.21,6.1648]
[1730602870130,21.29021221,162.27,162.22,21.29021221]
[1730602870335,21.29021221,162.28,162.23,6.164]
[1730602870506,92.0193,162.35,162.23,6.164]
[1730602870507,21.29021221,162.26,162.23,21.5742]
[1730602870712,21.29021221,162.24,162.21,6.1645]
[1730602871012,21.29021221,162.22,162.19,21.5787]
[1730602871319,21.29021221,162.24,162.19,21.5787]
[1730602871622,21.29021221,162.23,162.19,21.5787]
[1730602871822,21.29021221,162.21,162.19,15.4134]
[1730602872031,21.29021221,162.2,162.16,6.1663]
[1730602872337,21.29021221,162.23,162.17,41.29021221]
[1730602872520,21.29021221,162.21,162.17,20.0]
[1730602873116,36.69391221,162.3,162.18,21.29021221]
[1730602873117,21.29021221,162.23,162.18,21.29021221]
[1730602873405,21.29021221,162.23,162.19,23.776884]
[1730602873627,21.29021221,162.2,162.16,15.4168]
[1730602873810,21.29021221,162.21,162.16,15.4168]
[1730602874116,21.29021221,162.22,162.16,36.70701221]
[1730602874316,21.29021221,162.22,162.17,21.29021221]
[1730602874531,21.29021221,162.23,162.18,21.29021221]
[1730602874837,21.29021221,162.25,162.2,21.29021221]
[1730602875053,21.29021221,162.27,162.21,21.29021221]
[1730602875210,21.29021221,162.25,162.2,23.776884]
[1730602875408,21.29021221,162.25,162.2,45.06709621]
[1730602875708,21.29021221,162.27,162.22,23.776884]
[1730602876012,6.1614,162.3,162.23,21.29021221]
[1730602876013,21.29021221,162.28,162.23,21.29021221]
[1730602876204,21.29021221,162.26,162.21,42.86671221]
[1730602876405,21.29021221,162.25,162.21,15.4117]
[1730602876824,21.29021221,162.24,162.21,15.4117]
[1730602877334,21.29021221,162.26,162.21,15.4117]
[1730602877525,21.29021221,162.25,162.21,15.4117]
[1730602877834,21.29021221,162.23,162.18,23.776884]
[1730602878406,21.29021221,162.25,162.19,21.29021221]
[1730602878606,21.29021221,162.25,162.2,21.29021221]
[1730602879010,21.29021221,162.25,162.18,21.5806]
[1730602879011,27.45271221,162.27,162.21,21.29021221]
[1730602879212,27.45241221,162.28,162.22,21.29021221]
[1730602879415,21.29021221,162.28,162.22,21.29021221]
[1730602879726,27.45211221,162.29,162.23,21.29021221]
[1730602880413,21.29021221,162.3,162.25,27.45351221]
[1730602880617,0.1,162.36,162.25,27.45351221]
[1730602880618,21.29021221,162.33,162.27,21.29021221]
[1730602880806,21.29021221,162.36,162.3,21.29021221]
[1730602881007,21.29021221,162.38,162.32,45.06709621]
[1730602882243,21.29021221,162.38,162.33,6.1602]
[1730602882417,27.44851221,162.39,162.33,27.45041221]
[1730602882625,21.29021221,162.38,162.33,27.45041221]
[1730602882927,21.29021221,162.4,162.34,45.06709621]
[1730602883234,21.29021221,162.41,162.35,21.29021221]
[1730602883536,21.29021221,162.38,162.34,20.0]
[1730602883709,21.29021221,162.38,162.33,21.5609]
[1730602885214,21.29021221,162.38,162.33,42.85111221]
[1730602885411,21.29021221,162.38,162.33,21.5609]
[1730602885615,21.29021221,162.34,162.31,6.1606]
[1730602885929,21.29021221,162.35,162.31,6.1606]
[1730602886128,21.29021221,162.37,162.31,42.85341221]
[1730602886329,21.29021221,162.38,162.33,21.29021221]
[1730602887124,6.1568,162.42,162.36,21.29021221]
[1730602887125,21.29021221,162.42,162.36,21.29021221]
[1730602887320,21.29021221,162.42,162.37,21.29021221]
[1730602887922,21.29021221,162.42,162.36,21.29021221]
[1730602888234,21.29021221,162.4,162.36,23.776884]
[1730602888934,21.29021221,162.41,162.36,45.06709621]
[1730602889134,21.29021221,162.41,162.34,51.8031]
[1730602889135,21.29021221,162.4,162.37,15.3969]
[1730602889824,21.29021221,162.39,162.35,6.1595]
[1730602890026,21.29021221,162.4,162.35,27.44971221]
[1730602890331,21.29021221,162.39,162.35,21.5583]
[1730602890732,21.29021221,162.4,162.35,21.5583]
[1730602891033,21.29021221,162.38,162.35,15.3988]
[1730602891332,21.29021221,162.39,162.35,21.5583]
[1730602891531,21.29021221,162.4,162.35,42.84851221]
[1730602891736,21.29021221,162.41,162.36,45.06709621]
[1730602892033,0.2983171,162.43,162.38,23.776884]
[1730602892219,0.2983171,162.43,162.38,45.06709621]
[1730602892724,0.2983171,162.43,162.4,23.776884]
[1730602892911,0.2983171,162.43,162.42,65.06709621]
[1730602893123,0.2983171,162.43,162.42,71.22389621]
[1730602893408,0.2983171,162.43,162.41,15.3927]
[1730602893611,21.58852931,162.43,162.41,15.3927]
[1730602893827,0.2983171,162.43,162.41,15.3927]
[1730602894043,0.2983171,162.43,162.41,21.5499]
[1730602894245,0.2983171,162.43,162.41,15.3927]
[1730602895432,0.2983171,162.43,162.42,23.776884]
[1730602895643,0.2983171,162.43,162.42,43.776884]
[1730602895809,0.2983171,162.43,162.42,65.06709621]
[1730602896014,0.2983171,162.43,162.42,43.776884]
[1730602896516,0.2983171,162.43,162.38,16.4034]
[1730602896517,21.58852931,162.43,162.38,6.158]
[1730602896840,21.29021221,162.39,162.34,16.4034]
[1730602897036,21.29021221,162.37,162.34,16.4034]